Workbook

Sheet 1a. Original Design
A1: Original Case S3 (System S3, River, Utility scale) | G1: Please do not change the numbers of this page ("1a. Original design"). This is Case S3 of the SHARKS FOA document. | N1: LCOE calculation | R1: Factors: material, manufacturing, and installation (dimensionless)
A2: M1 | B2: =C24 -> 0.3795727606 | C2: -- | N2: LCOE original | O2: =O12 -> 0.1670899812 | P2: $/kWh | S2: Material | T2: Material factor ft
A3: M2 | B3: =G21 -> 0.0003330570216 | C3: m2/kg | I3: Brown numbers = input data | N3: LCOE target | O3: =0.065 -> 0.065 | P3: $/kWh | S3: Aluminum alloys | T3: =8/$O$4 -> 4
A4: LCOE | B4: =O12 -> 0.1670899812 | C4: $/kWh | I4: Black numbers = result of equations | N4: Csref (Steel ref) | O4: =2 -> 2 | P4: $/kg | S4: Brass (70Cu30Zn, annealed) | T4: =2.2/$O$4 -> 1.1
A5: LCOE target | B5: =O3 -> 0.065 | C5: $/kWh | N5: vCutIn | O5: 0.5 | P5: m/s | S5: CFRP Laminate (carbon fiber reinforced polymer) | T5: =160/$O$4 -> 80
F6: M2 calculation | N6: vCutOut | O6: 2.85 | P6: m/s | S6: Copper alloys | T6: =3/$O$4 -> 1.5
N7: FCR | O7: =0.082 -> 0.082 | P7: 1/yr | S7: GFRP Laminate (glass-fiber reinforced plastic or fiberglass) | T7: =8/$O$4 -> 4
A8: M1 calculation | F8: j | G8: Component | H8: mj (kg) | I8: ftj | J8: fmj | K8: fij | L8: mcj (kg) | N8: Per (rated power) | O8: =100000 -> 100000 | P8: We | S8: Lead alloys | T8: =1.2/$O$4 -> 0.6
F9: 1 | G9: Rotor (blades, hub) | H9: =I9*(1+J9+K9)*L9 -> 30056.29404 | I9: =T7 -> 4 | J9: =T16 -> 2.80066 | K9: =U16 -> 0.06365 | L9: =1944.48 -> 1944.48 | N9: OpExPerKW | O9: =197 -> 197 | P9: $/kW/yr | S9: Nickel alloys | T9: =6/$O$4 -> 3
A10: Water density | B10: ρ | C10: =1000 -> 1000 | D10: kg/m3 | F10: 2 | G10: Nacelle (generator, drive-train, PTO, yaw, bearings, pitch…) | H10: =I10*(1+J10+K10)*L10 -> 27029.03222 | I10: =T12 -> 1 | J10: =T17 -> 2.80066 | K10: 0.06365 | L10: =6994.53 -> 6994.53 | N10: OpEx | O10: =O9*O8/1000 -> 19700 | P10: $/yr | S10: Pre-stressed concrete | T10: =0.6/$O$4 -> 0.3
A11: Swept rotor area | B11: Ar | C11: =61.44 -> 61.44 | D11: m2 | F11: 3 | G11: Structure (tower, cross-arm, columns...) | H11: =I11*(1+J11+K11)*L11 -> 31174.93699 | I11: =T12 -> 1 | J11: 8.03236 | K11: 0.06365 | L11: =3427.32 -> 3427.32 | N11: CapEx | O11: =H20*O4 -> 368945.8322 | P11: $ | S11: Titanium alloys | T11: =45/$O$4 -> 22.5
A12: Water speed below rated | B12: V1 | C12: =1.5 -> 1.5 | D12: m/s | F12: 4 | G12: Floating system (floaters, ballast…) | H12: 37105.53787 | I12: =T12 -> 1 | J12: 7.83725 | K12: 0.06365 | L12: =4168.74 -> 4168.74 | N12: LCOE | O12: =($O$7*$O$11+$O$10)/$O$23 -> 0.1670899812 | P12: $/kWh | S12: Steel of reference, to calculate ft factors | T12: =2/$O$4 -> 1
A13: Water power at V1 | B13: Pw1 | C13: =0.5*C10*C11*C12^3 -> 103680 | D13: W | F13: 5 | G13: Mooring system (ropes, connection…) | H13: =I13*(1+J13+K13)*L13 -> 1906.694319 | I13: =T12 -> 1 | J13: 1.72207 | K13: 0.11747 | L13: =671.48 -> 671.48 | N13: indVin | O13: =IF(O5=B30,ROW(B30),ROW(B30)+MATCH(O5,B30:B270))-1 -> 40 | P13: --
A14: Electrical power at V1 | B14: Pe1 | C14: =0.5*C10*C11*C12^3*C21*C22 -> 39354.10381 | D14: We | F14: 6 | G14: Anchoring/foundation system | H14: =I14*(1+J14+K14)*L14 -> 57200.42068 | I14: =T10 -> 0.3 | J14: 1.72207 | K14: 0.11747 | L14: =67147.52 -> 67147.52 | N14: indVoff | O14: =IF(O6=B30,ROW(B30),ROW(B30)+MATCH(O6,B30:B270)) -> 88 | P14: --
A15: Generator losses | B15: Lg | C15: =0.03 -> 0.03 | D15: p.u. | N15: nHoursYear | O15: =8760 -> 8760 | P15: hr/yr | R15: j | S15: Component (j = 1 to 7) | T15: Manufacturing factor fm | U15: Installation factor fi
A16: Drive-train losses | B16: Ldt | C16: =0.035 -> 0.035 | D16: p.u. | N16: interval | O16: =0.05 -> 0.05 | P16: -- | R16: 1 | S16: =G9 -> Rotor (blades, hub) | T16: =2.80066 -> 2.80066 | U16: =0.06365 -> 0.06365
A17: Wake effect losses | B17: Lw | C17: =0 -> 0 | D17: p.u. | N17: kk | O17: =1/O16 -> 20 | P17: -- | R17: 2 | S17: =G10 -> Nacelle (generator, drive-train, PTO, yaw, bearings, pitch…) | T17: =2.80066 -> 2.80066 | U17: =0.06365 -> 0.06365
A18: Electrical losses | B18: Le | C18: =0 -> 0 | D18: p.u. | N18: nV0 | O18: =COUNT(B30:B320) -> 291 | P18: -- | R18: 3 | S18: Structure (tower, cross-arm, columns...) | T18: =8.03236 -> 8.03236 | U18: =0.06365 -> 0.06365
A19: Other losses | B19: Lo | C19: =1-(0.99*0.98) -> 0.0298 | D19: p.u. | N19: meanWaterVel | O19: =SUMPRODUCT(B30:B330,O30:O330) -> 1.30955 | P19: m/s | R19: 4 | S19: Floating system (floaters, ballast…) | T19: =7.83725 -> 7.83725 | U19: =0.06365 -> 0.06365
A20: Water turbine availavility | B20: Av | C20: =0.9288 -> 0.9288 | D20: p.u. | G20: Meq | H20: =SUM(H9:H19) -> 184472.9161 | I20: kg | N20: ratedWaterVel | O20: =INDIRECT(ADDRESS(ROW(E29)+MATCH(O8,E30:E330,0),COLUMN(B29))) -> 2.05 | P20: m/s | R20: 5 | S20: Mooring system (ropes, connection…) | T20: =1.72207 -> 1.72207 | U20: =0.11747 -> 0.11747
A21: Max. power coefficient | B21: Cp | C21: =0.45 -> 0.45 | D21: p.u. | F21: M2 | G21: =C11/H20 -> 0.0003330570216 | H21: m2/kg | N21: WhYear | O21: =MAX(F30:F320) -> 298962019.6 | P21: Wh/yr | R21: 6 | S21: Anchoring/foundation system | T21: =1.72207 -> 1.72207 | U21: =0.11747 -> 0.11747
A22: Electromechanical eff. | B22: µ | C22: =(1-C15)*(1-C16)*(1-C17)*(1-C18)*(1-C19)*C20 -> 0.8434950234 | D22: p.u. | N22: CF | O22: =O21/(O15*O8)*100 -> 34.12808443 | P22: %
A23: Water-to-electron eff. | B23: Pe1/Pw1 | C23: =C14/C13 -> 0.3795727606 | D23: p.u. | F23: Average cross section in this site, meanCS, (m2) | H23: =H24*H25 -> 9600 | N23: AEP | O23: =O15*O8*(O22/100)/1000 -> 298962.0196 | P23: kWh/yr
B24: M1 | C24: =C21*C22 -> 0.3795727606 | D24: -- | F24: meanWidth | G24: Average width (m) | H24: =800 -> 800
F25: meanDepth | G25: Average depth (m) | H25: =12 -> 12 | R25: Cost of electrical lines (intra-farm and farm to shore) and substation are excluded
A28: LCOE calculations (should not need to change anything below this row)
B29: V0 | C29: Pwater | D29: h1 | E29: Pelec | F29: WhYear | I29: Original S3 LCOE | J29: Target S3 LCOE | N29: Speed (m/s) | O29: Time | P29: Site (River): Mississippi River at Baton Rouge, in Louisiana
B30: 0 | C30: =0.5*$C$10*$C$11*(B30)^3 -> 0 | D30: =IF(B30<$O$5,0,IF(B30>$O$6, 0,O30)) -> 0 | E30: =IF(B30<$O$5,0,IF(C30*$C$24>$O$8,$O$8,C30*$C$24)) -> 0 | F30: =IF(B30>$O$6,0,IF(B30<$O$5,0,IF(ROW(B30)>ROW($B$30),OFFSET(INDIRECT(ADDRESS(ROW(), COLUMN())),-1,0)+$O$15*D30*E30,IF(ROW(B30)=ROW($B$30),$O$15*D30*E30,0)))) -> 0 | H30: M1 | I30: M2 | J30: M2 | N30: 0 | O30: 0
B31: =B30+$O$16 -> 0.05 | C31: =0.5*$C$10*$C$11*(B31)^3 -> 3.84 | D31: =IF(B31<$O$5,0,IF(B31>$O$6, 0,O31)) -> 0 | E31: 0 | F31: 0 | H31: =B341 -> 0.1 | I31: =B336 -> 614400 | J31: =B649 -> 614400 | N31: 0.05 | O31: 0
B32: 0.1 | C32: 30.72 | D32: 0 | E32: 0 | F32: 0 | H32: =D341 -> 0.11601294 | I32: =D336 -> 614400 | J32: =D649 -> 614400 | N32: 0.1 | O32: 0
B33: 0.15 | C33: 103.68 | D33: 0 | E33: 0 | F33: 0 | H33: =F341 -> 0.13459002 | I33: =F336 -> 614400 | J33: =F649 -> 614400 | N33: 0.15 | O33: 0
B34: 0.2 | C34: 245.76 | D34: 0 | E34: 0 | F34: 0 | H34: =H341 -> 0.15614184 | I34: =H336 -> 0.003689529457 | J34: =H649 -> 614400 | N34: 0.2 | O34: 0
B35: 0.25 | C35: 480 | D35: 0 | E35: 0 | F35: 0 | H35: =J341 -> 0.18114473 | I35: =J336 -> 0.001612219375 | J35: =J649 -> 614400 | N35: 0.25 | O35: 0
B36: 0.3 | C36: 829.44 | D36: 0 | E36: 0 | F36: 0 | H36: =L341 -> 0.21015133 | I36: =L336 -> 0.0009868459909 | J36: =L649 -> 614400 | N36: 0.3 | O36: 0
B37: 0.35 | C37: 1317.12 | D37: 0 | E37: 0 | F37: 0 | H37: =N341 -> 0.24380273 | I37: =N336 -> 0.0006879293039 | J37: =N649 -> 614400 | N37: 0.35 | O37: 0
B38: 0.4 | C38: 1966.08 | D38: 0 | E38: 0 | F38: 0 | H38: =P341 -> 0.28284271 | I38: =P336 -> 0.0005153233199 | J38: =P649 -> 614400 | N38: 0.4 | O38: 0
B39: 0.45 | C39: 2799.36 | D39: 0 | E39: 0 | F39: 0 | H39: =R341 -> 0.32813414 | I39: =R336 -> 0.000405644508 | J39: =R649 -> 614400 | N39: 0.45 | O39: 0.00075
B40: 0.5 | C40: 3840 | D40: 0.0015 | E40: 1457.559401 | F40: 19152.33052 | H40: =T341 -> 0.38067806 | I40: =T336 -> 0.0003318867665 | J40: =T649 -> 614400 | N40: 0.5 | O40: 0.0015
B41: 0.55 | C41: 5111.04 | D41: 0.0075 | E41: 1940.011562 | F41: 146611.0902 | H41: =V341 -> 0.44163581 | I41: =V336 -> 0.0002798783321 | J41: =V649 -> 0.005118136802 | N41: 0.55 | O41: 0.0075
B42: 0.6 | C42: 6635.52 | D42: 0.0135 | E42: 2518.662644 | F42: 444468.1344 | H42: =X341 -> 0.51235468 | I42: =X336 -> 0.0002417017787 | J42: =X649 -> 0.002410091392 | N42: 0.6 | O42: 0.0135
B43: 0.65 | C43: 8436.48 | D43: 0.021 | E43: 3202.258003 | F43: 1033555.517 | H43: =Z341 -> 0.59439772 | I43: =Z336 -> 0.000212871606 | J43: =Z649 -> 0.00158002845 | N43: 0.65 | O43: 0.021
B44: 0.7 | C44: 10536.96 | D44: 0.0285 | E44: 3999.542995 | F44: 2032081.421 | H44: =AB341 -> 0.68957826 | I44: =AB336 -> 0.0001902860145 | J44: =AB649 -> 0.001176740382 | N44: 0.7 | O44: 0.0285
B45: 0.75 | C45: 12960 | D45: 0.03725 | E45: 4919.262977 | F45: 3637286.123 | H45: =AD341 -> 0.8 | I45: =AD336 -> 0.0001719998835 | J45: =AD649 -> 0.0009370752407 | N45: 0.75 | O45: 0.03725
B46: 0.8 | C46: 15728.64 | D46: 0.046 | E46: 5970.163305 | F46: 6043023.128 | N46: 0.8 | O46: 0.046
B47: 0.85 | C47: 18865.92 | D47: 0.048625 | E47: 7160.989335 | F47: 9093282.34 | N47: 0.85 | O47: 0.048625
B48: 0.9 | C48: 22394.88 | D48: 0.05125 | E48: 8500.486424 | F48: 12909575.72 | N48: 0.9 | O48: 0.05125
B49: 0.95 | C49: 26338.56 | D49: 0.048625 | E49: 9997.399928 | F49: 17168018.21 | N49: 0.95 | O49: 0.048625
B50: 1 | C50: 30720 | D50: 0.046 | E50: 11660.4752 | F50: 21866723.29 | I50: M1 | J50: M2 | N50: 1 | O50: 0.046
B51: 1.05 | C51: 35562.24 | D51: 0.0425 | E51: 13498.45761 | F51: 26892199.06 | H51: Betz × 1 | I51: 0.593 | J51: 0 | N51: 1.05 | O51: 0.0425
B52: 1.1 | C52: 40888.32 | D52: 0.039 | E52: 15520.0925 | F52: 32194483.46 | I52: 0.593 | J52: 0.005 | N52: 1.1 | O52: 0.039
B53: 1.15 | C53: 46721.28 | D53: 0.03725 | E53: 17734.12523 | F53: 37981305.87 | N53: 1.15 | O53: 0.03725
B54: 1.2 | C54: 53084.16 | D54: 0.0355 | E54: 20149.30115 | F54: 44247335.54 | N54: 1.2 | O54: 0.0355
B55: 1.25 | C55: 60000 | D55: 0.0335 | E55: 22774.36563 | F55: 50930700.88 | N55: 1.25 | O55: 0.0335
B56: 1.3 | C56: 67491.84 | D56: 0.0315 | E56: 25618.06402 | F56: 57999749.46 | N56: 1.3 | O56: 0.0315
B57: 1.35 | C57: 75582.72 | D57: 0.03 | E57: 28689.14168 | F57: 65539255.9 | N57: 1.35 | O57: 0.03
B58: 1.4 | C58: 84295.68 | D58: 0.0285 | E58: 31996.34396 | F58: 73527463.13 | N58: 1.4 | O58: 0.0285
B59: 1.45 | C59: 93653.76 | D59: 0.02775 | E59: 35548.41622 | F59: 82168927.63 | N59: 1.45 | O59: 0.02775
B60: 1.5 | C60: 103680 | D60: 0.027 | E60: 39354.10381 | F60: 91476960.26 | N60: 1.5 | O60: 0.027
B61: 1.55 | C61: 114397.44 | D61: 0.02675 | E61: 43422.1521 | F61: 101652073.2 | N61: 1.55 | O61: 0.02675
B62: 1.6 | C62: 125829.12 | D62: 0.0265 | E62: 47761.30644 | F62: 112739382.8 | N62: 1.6 | O62: 0.0265
B63: 1.65 | C63: 137998.08 | D63: 0.02475 | E63: 52380.31218 | F63: 124095958.3 | N63: 1.65 | O63: 0.02475
B64: 1.7 | C64: 150927.36 | D64: 0.023 | E64: 57287.91468 | F64: 135638327.4 | N64: 1.7 | O64: 0.023
B65: 1.75 | C65: 164640 | D65: 0.023125 | E65: 62492.8593 | F65: 148297818.3 | N65: 1.75 | O65: 0.023125
B66: 1.8 | C66: 179159.04 | D66: 0.02325 | E66: 68003.89139 | F66: 162148170.9 | N66: 1.8 | O66: 0.02325
B67: 1.85 | C67: 194507.52 | D67: 0.021625 | E67: 73829.75631 | F67: 176134110.8 | N67: 1.85 | O67: 0.021625
B68: 1.9 | C68: 210708.48 | D68: 0.02 | E68: 79979.19943 | F68: 190146466.5 | N68: 1.9 | O68: 0.02
B69: 1.95 | C69: 227784.96 | D69: 0.019 | E69: 86460.96608 | F69: 204537029.7 | N69: 1.95 | O69: 0.019
B70: 2 | C70: 245760 | D70: 0.018 | E70: 93283.80163 | F70: 219246019.6 | N70: 2 | O70: 0.018
B71: 2.05 | C71: 264656.64 | D71: 0.016125 | E71: 100000 | F71: 233371519.6 | N71: 2.05 | O71: 0.016125
B72: 2.1 | C72: 284497.92 | D72: 0.01425 | E72: 100000 | F72: 245854519.6 | N72: 2.1 | O72: 0.01425
B73: 2.15 | C73: 305306.88 | D73: 0.012125 | E73: 100000 | F73: 256476019.6 | N73: 2.15 | O73: 0.012125
B74: 2.2 | C74: 327106.56 | D74: 0.01 | E74: 100000 | F74: 265236019.6 | N74: 2.2 | O74: 0.01
B75: 2.25 | C75: 349920 | D75: 0.008125 | E75: 100000 | F75: 272353519.6 | N75: 2.25 | O75: 0.008125
B76: 2.3 | C76: 373770.24 | D76: 0.00625 | E76: 100000 | F76: 277828519.6 | N76: 2.3 | O76: 0.00625
B77: 2.35 | C77: 398680.32 | D77: 0.005 | E77: 100000 | F77: 282208519.6 | N77: 2.35 | O77: 0.005
B78: 2.4 | C78: 424673.28 | D78: 0.00375 | E78: 100000 | F78: 285493519.6 | N78: 2.4 | O78: 0.00375
B79: 2.45 | C79: 451772.16 | D79: 0.003125 | E79: 100000 | F79: 288231019.6 | N79: 2.45 | O79: 0.003125
B80: 2.5 | C80: 480000 | D80: 0.0025 | E80: 100000 | F80: 290421019.6 | N80: 2.5 | O80: 0.0025
B81: 2.55 | C81: 509379.84 | D81: 0.00225 | E81: 100000 | F81: 292392019.6 | N81: 2.55 | O81: 0.00225
B82: 2.6 | C82: 539934.72 | D82: 0.002 | E82: 100000 | F82: 294144019.6 | N82: 2.6 | O82: 0.002
B83: 2.65 | C83: 571687.68 | D83: 0.002 | E83: 100000 | F83: 295896019.6 | N83: 2.65 | O83: 0.002
B84: 2.7 | C84: 604661.76 | D84: 0.002 | E84: 100000 | F84: 297648019.6 | N84: 2.7 | O84: 0.002
B85: 2.75 | C85: 638880 | D85: 0.001125 | E85: 100000 | F85: 298633519.6 | N85: 2.75 | O85: 0.001125
B86: 2.8 | C86: 674365.44 | D86: 0.00025 | E86: 100000 | F86: 298852519.6 | N86: 2.8 | O86: 0.00025
B87: 2.85 | C87: 711141.12 | D87: 0.000125 | E87: 100000 | F87: 298962019.6 | N87: 2.85 | O87: 0.000125
B88: 2.9 | C88: 749230.08 | D88: 0 | E88: 100000 | F88: 0 | N88: 2.9 | O88: 0
B89: 2.95 | C89: 788655.36 | D89: 0 | E89: 100000 | F89: 0 | N89: 2.95 | O89: 0
B90: 3 | C90: 829440 | D90: 0 | E90: 100000 | F90: 0 | N90: 3 | O90: 0
B91: 3.05 | C91: 871607.04 | D91: 0 | E91: 100000 | F91: 0 | N91: 3.05 | O91: 0
B92: 3.1 | C92: 915179.52 | D92: 0 | E92: 100000 | F92: 0 | N92: 3.1 | O92: 0
B93: 3.15 | C93: 960180.48 | D93: 0 | E93: 100000 | F93: 0 | N93: 3.15 | O93: 0
B94: 3.2 | C94: 1006632.96 | D94: 0 | E94: =IF(B94<$O$5,0,IF(C94*$C$24>$O$8,$O$8,C94*$C$24)) -> 100000 | F94: =IF(B94>$O$6,0,IF(B94<$O$5,0,IF(ROW(B94)>ROW($B$30),OFFSET(INDIRECT(ADDRESS(ROW(), COLUMN())),-1,0)+$O$15*D94*E94,IF(ROW(B94)=ROW($B$30),$O$15*D94*E94,0)))) -> 0 | N94: 3.2 | O94: 0
B95: =B94+$O$16 -> 3.25 | C95: =0.5*$C$10*$C$11*(B95)^3 -> 1054560 | D95: =IF(B95<$O$5,0,IF(B95>$O$6, 0,O95)) -> 0 | E95: 100000 | F95: 0 | N95: 3.25 | O95: 0
B96: 3.3 | C96: 1103984.64 | D96: 0 | E96: 100000 | F96: 0 | N96: 3.3 | O96: 0
B97: 3.35 | C97: 1154929.92 | D97: 0 | E97: 100000 | F97: 0 | N97: 3.35 | O97: 0
B98: 3.4 | C98: 1207418.88 | D98: 0 | E98: 100000 | F98: 0 | N98: 3.4 | O98: 0
B99: 3.45 | C99: 1261474.56 | D99: 0 | E99: 100000 | F99: 0 | N99: 3.45 | O99: 0
B100: 3.5 | C100: 1317120 | D100: 0 | E100: 100000 | F100: 0 | N100: 3.5 | O100: 0
B101: 3.55 | C101: 1374378.24 | D101: 0 | E101: 100000 | F101: 0 | N101: 3.55 | O101: 0
B102: 3.6 | C102: 1433272.32 | D102: 0 | E102: 100000 | F102: 0 | N102: 3.6 | O102: 0
B103: 3.65 | C103: 1493825.28 | D103: 0 | E103: 100000 | F103: 0 | N103: 3.65 | O103: 0
B104: 3.7 | C104: 1556060.16 | D104: 0 | E104: 100000 | F104: 0 | N104: 3.7 | O104: 0
B105: 3.75 | C105: 1620000 | D105: 0 | E105: 100000 | F105: 0 | N105: 3.75 | O105: 0
B106: 3.8 | C106: 1685667.84 | D106: 0 | E106: 100000 | F106: 0 | N106: 3.8 | O106: 0
B107: 3.85 | C107: 1753086.72 | D107: 0 | E107: 100000 | F107: 0 | N107: 3.85 | O107: 0
B108: 3.9 | C108: 1822279.68 | D108: 0 | E108: 100000 | F108: 0 | N108: 3.9 | O108: 0
B109: 3.95 | C109: 1893269.76 | D109: 0 | E109: 100000 | F109: 0 | N109: 3.95 | O109: 0
B110: 4 | C110: 1966080 | D110: 0 | E110: 100000 | F110: 0 | N110: 4 | O110: 0
B111: 4.05 | C111: 2040733.44 | D111: 0 | E111: 100000 | F111: 0 | N111: 4.05 | O111: 0
B112: 4.1 | C112: 2117253.12 | D112: 0 | E112: 100000 | F112: 0 | N112: 4.1 | O112: 0
B113: 4.15 | C113: 2195662.08 | D113: 0 | E113: 100000 | F113: 0 | N113: 4.15 | O113: 0
B114: 4.2 | C114: 2275983.36 | D114: 0 | E114: 100000 | F114: 0 | N114: 4.2 | O114: 0
B115: 4.25 | C115: 2358240 | D115: 0 | E115: 100000 | F115: 0 | N115: 4.25 | O115: 0
B116: 4.3 | C116: 2442455.04 | D116: 0 | E116: 100000 | F116: 0 | N116: 4.3 | O116: 0
B117: 4.35 | C117: 2528651.52 | D117: 0 | E117: 100000 | F117: 0 | N117: 4.35 | O117: 0
B118: 4.4 | C118: 2616852.48 | D118: 0 | E118: 100000 | F118: 0 | N118: 4.4 | O118: 0
B119: 4.45 | C119: 2707080.96 | D119: 0 | E119: 100000 | F119: 0 | N119: 4.45 | O119: 0
B120: 4.5 | C120: 2799360 | D120: 0 | E120: 100000 | F120: 0 | N120: 4.5 | O120: 0
B121: 4.55 | C121: 2893712.64 | D121: 0 | E121: 100000 | F121: 0 | N121: 4.55 | O121: 0
B122: 4.6 | C122: 2990161.92 | D122: 0 | E122: 100000 | F122: 0 | N122: 4.6 | O122: 0
B123: 4.65 | C123: 3088730.88 | D123: 0 | E123: 100000 | F123: 0 | N123: 4.65 | O123: 0
B124: 4.7 | C124: 3189442.56 | D124: 0 | E124: 100000 | F124: 0 | N124: 4.7 | O124: 0
B125: 4.75 | C125: 3292320 | D125: 0 | E125: 100000 | F125: 0 | N125: 4.75 | O125: 0
B126: 4.8 | C126: 3397386.24 | D126: 0 | E126: 100000 | F126: 0 | N126: 4.8 | O126: 0
B127: 4.85 | C127: 3504664.32 | D127: 0 | E127: 100000 | F127: 0 | N127: 4.85 | O127: 0
B128: 4.9 | C128: 3614177.28 | D128: 0 | E128: 100000 | F128: 0 | N128: 4.9 | O128: 0
B129: 4.95 | C129: 3725948.16 | D129: 0 | E129: 100000 | F129: 0 | N129: 4.95 | O129: 0
B130: 5 | C130: 3840000 | D130: 0 | E130: 100000 | F130: 0 | N130: 5 | O130: 0
B131: 5.05 | C131: 3956355.84 | D131: 0 | E131: 100000 | F131: 0 | N131: 5.05 | O131: 0
B132: 5.1 | C132: 4075038.72 | D132: 0 | E132: 100000 | F132: 0 | N132: 5.1 | O132: 0
B133: 5.15 | C133: 4196071.68 | D133: 0 | E133: 100000 | F133: 0 | N133: 5.15 | O133: 0
B134: 5.2 | C134: 4319477.76 | D134: 0 | E134: 100000 | F134: 0 | N134: 5.2 | O134: 0
B135: 5.25 | C135: 4445280 | D135: 0 | E135: 100000 | F135: 0 | N135: 5.25 | O135: 0
B136: 5.3 | C136: 4573501.44 | D136: 0 | E136: 100000 | F136: 0 | N136: 5.3 | O136: 0
B137: 5.35 | C137: 4704165.12 | D137: 0 | E137: 100000 | F137: 0
B138: 5.4 | C138: 4837294.08 | D138: 0 | E138: 100000 | F138: 0
B139: 5.45 | C139: 4972911.36 | D139: 0 | E139: 100000 | F139: 0
B140: 5.5 | C140: 5111040 | D140: 0 | E140: 100000 | F140: 0
B141: 5.55 | C141: 5251703.04 | D141: 0 | E141: 100000 | F141: 0
B142: 5.6 | C142: 5394923.52 | D142: 0 | E142: 100000 | F142: 0
B143: 5.65 | C143: 5540724.48 | D143: 0 | E143: 100000 | F143: 0
B144: 5.7 | C144: 5689128.96 | D144: 0 | E144: 100000 | F144: 0
B145: 5.75 | C145: 5840160 | D145: 0 | E145: 100000 | F145: 0
B146: 5.8 | C146: 5993840.64 | D146: 0 | E146: 100000 | F146: 0
B147: 5.85 | C147: 6150193.92 | D147: 0 | E147: 100000 | F147: 0
B148: 5.9 | C148: 6309242.88 | D148: 0 | E148: 100000 | F148: 0
B149: 5.95 | C149: 6471010.56 | D149: 0 | E149: 100000 | F149: 0
B150: 6 | C150: 6635520 | D150: 0 | E150: 100000 | F150: 0
B151: 6.05 | C151: 6802794.24 | D151: 0 | E151: 100000 | F151: 0
B152: 6.1 | C152: 6972856.32 | D152: 0 | E152: 100000 | F152: 0
B153: 6.15 | C153: 7145729.28 | D153: 0 | E153: 100000 | F153: 0
B154: 6.2 | C154: 7321436.16 | D154: 0 | E154: 100000 | F154: 0
B155: 6.25 | C155: 7500000 | D155: 0 | E155: 100000 | F155: 0
B156: 6.3 | C156: 7681443.84 | D156: 0 | E156: 100000 | F156: 0
B157: 6.35 | C157: 7865790.72 | D157: 0 | E157: 100000 | F157: 0
B158: 6.4 | C158: 8053063.68 | D158: 0 | E158: =IF(B158<$O$5,0,IF(C158*$C$24>$O$8,$O$8,C158*$C$24)) -> 100000 | F158: =IF(B158>$O$6,0,IF(B158<$O$5,0,IF(ROW(B158)>ROW($B$30),OFFSET(INDIRECT(ADDRESS(ROW(), COLUMN())),-1,0)+$O$15*D158*E158,IF(ROW(B158)=ROW($B$30),$O$15*D158*E158,0)))) -> 0
B159: =B158+$O$16 -> 6.45 | C159: =0.5*$C$10*$C$11*(B159)^3 -> 8243285.76 | D159: =IF(B159<$O$5,0,IF(B159>$O$6, 0,O159)) -> 0 | E159: 100000 | F159: 0
B160: 6.5 | C160: 8436480 | D160: 0 | E160: 100000 | F160: 0
B161: 6.55 | C161: 8632669.44 | D161: 0 | E161: 100000 | F161: 0
B162: 6.6 | C162: 8831877.12 | D162: 0 | E162: 100000 | F162: 0
B163: 6.65 | C163: 9034126.08 | D163: 0 | E163: 100000 | F163: 0
B164: 6.7 | C164: 9239439.36 | D164: 0 | E164: 100000 | F164: 0
B165: 6.75 | C165: 9447840 | D165: 0 | E165: 100000 | F165: 0
B166: 6.8 | C166: 9659351.04 | D166: 0 | E166: 100000 | F166: 0
B167: 6.85 | C167: 9873995.52 | D167: 0 | E167: 100000 | F167: 0
B168: 6.9 | C168: 10091796.48 | D168: 0 | E168: 100000 | F168: 0
B169: 6.95 | C169: 10312776.96 | D169: 0 | E169: 100000 | F169: 0
B170: 7 | C170: 10536960 | D170: 0 | E170: 100000 | F170: 0
B171: 7.05 | C171: 10764368.64 | D171: 0 | E171: 100000 | F171: 0
B172: 7.1 | C172: 10995025.92 | D172: 0 | E172: 100000 | F172: 0
B173: 7.15 | C173: 11228954.88 | D173: 0 | E173: 100000 | F173: 0
B174: 7.2 | C174: 11466178.56 | D174: 0 | E174: 100000 | F174: 0
B175: 7.25 | C175: 11706720 | D175: 0 | E175: 100000 | F175: 0
B176: 7.3 | C176: 11950602.24 | D176: 0 | E176: 100000 | F176: 0
B177: 7.35 | C177: 12197848.32 | D177: 0 | E177: 100000 | F177: 0
B178: 7.4 | C178: 12448481.28 | D178: 0 | E178: 100000 | F178: 0
B179: 7.45 | C179: 12702524.16 | D179: 0 | E179: 100000 | F179: 0
B180: 7.5 | C180: 12960000 | D180: 0 | E180: 100000 | F180: 0
B181: 7.55 | C181: 13220931.84 | D181: 0 | E181: 100000 | F181: 0
B182: 7.6 | C182: 13485342.72 | D182: 0 | E182: 100000 | F182: 0
B183: 7.65 | C183: 13753255.68 | D183: 0 | E183: 100000 | F183: 0
B184: 7.7 | C184: 14024693.76 | D184: 0 | E184: 100000 | F184: 0
B185: 7.75 | C185: 14299680 | D185: 0 | E185: 100000 | F185: 0
B186: 7.8 | C186: 14578237.44 | D186: 0 | E186: 100000 | F186: 0
B187: 7.85 | C187: 14860389.12 | D187: 0 | E187: 100000 | F187: 0
B188: 7.9 | C188: 15146158.08 | D188: 0 | E188: 100000 | F188: 0
B189: 7.95 | C189: 15435567.36 | D189: 0 | E189: 100000 | F189: 0
B190: 8 | C190: 15728640 | D190: 0 | E190: 100000 | F190: 0
B191: 8.05 | C191: 16025399.04 | D191: 0 | E191: 100000 | F191: 0
B192: 8.1 | C192: 16325867.52 | D192: 0 | E192: 100000 | F192: 0
B193: 8.15 | C193: 16630068.48 | D193: 0 | E193: 100000 | F193: 0
B194: 8.2 | C194: 16938024.96 | D194: 0 | E194: 100000 | F194: 0
B195: 8.25 | C195: 17249760 | D195: 0 | E195: 100000 | F195: 0
B196: 8.3 | C196: 17565296.64 | D196: 0 | E196: 100000 | F196: 0
B197: 8.35 | C197: 17884657.92 | D197: 0 | E197: 100000 | F197: 0
B198: 8.4 | C198: 18207866.88 | D198: 0 | E198: 100000 | F198: 0
B199: 8.45 | C199: 18534946.56 | D199: 0 | E199: 100000 | F199: 0
B200: 8.5 | C200: 18865920 | D200: 0 | E200: 100000 | F200: 0
B201: 8.55 | C201: 19200810.24 | D201: 0 | E201: 100000 | F201: 0
B202: 8.6 | C202: 19539640.32 | D202: 0 | E202: 100000 | F202: 0
... 746 more rows

Sheet 1b. Original Design Plot
P27: This plot is generated automatically from the tab "1a. Original Design"

Sheet 2a. Proposed Design
A1: Proposed Riverine Design -- CASE S3 | G1: Please use this template to calculate the metrics for your proposed system design. All changes made will be highlighted in red. Use the tab ("2c. Summary of changes") to document the values changed. | J1: Add in J2 Control number | N1: LCOE calculation | R1: Factors: material, manufacturing, and installation (dimensionless)
A2: M1 | B2: =C24 -> 0.3795727606 | C2: -- | J2: …… | N2: LCOE original | O2: =O12 -> 0.1670899812 | P2: $/kWh | S2: Material | T2: Material factor ft
A3: M2 | B3: =G21 -> 0.0003330570216 | C3: m2/kg | I3: Brown numbers = input data | N3: LCOE target | O3: =0.065 -> 0.065 | P3: $/kWh | S3: Aluminum alloys | T3: =8/$O$4 -> 4
A4: LCOE | B4: =O12 -> 0.1670899812 | C4: $/kWh | I4: Black numbers = result of equations | N4: Csref (Steel ref) | O4: =2 -> 2 | P4: $/kg | S4: Brass (70Cu30Zn, annealed) | T4: =2.2/$O$4 -> 1.1
A5: LCOE target | B5: =O3 -> 0.065 | C5: $/kWh | N5: vCutIn | O5: =0.5 -> 0.5 | P5: m/s | S5: CFRP Laminate (carbon fiber reinforced polymer) | T5: =160/$O$4 -> 80
F6: M2 calculation | N6: vCutOut | O6: =2.85 -> 2.85 | P6: m/s | S6: Copper alloys | T6: =3/$O$4 -> 1.5
N7: FCR | O7: =0.082 -> 0.082 | P7: 1/yr | S7: GFRP Laminate (glass-fiber reinforced plastic or fiberglass) | T7: =8/$O$4 -> 4
A8: M1 calculation | F8: j | G8: Component | H8: mj (kg) | I8: ftj | J8: fmj | K8: fij | L8: mcj (kg) | N8: Per (rated power) | O8: =100000 -> 100000 | P8: We | S8: Lead alloys | T8: =1.2/$O$4 -> 0.6
F9: 1 | G9: Rotor (blades, hub) | H9: =I9*(1+J9+K9)*L9 -> 30056.29404 | I9: =T7 -> 4 | J9: =T16 -> 2.80066 | K9: =U16 -> 0.06365 | L9: =1944.48 -> 1944.48 | N9: OpExPerKW | O9: =197 -> 197 | P9: $/kW/yr | S9: Nickel alloys | T9: =6/$O$4 -> 3
A10: Water density | B10: ρ | C10: =1000 -> 1000 | D10: kg/m3 | F10: 2 | G10: Nacelle (generator, drive-train, PTO, yaw, bearings, pitch…) | H10: =I10*(1+J10+K10)*L10 -> 27029.03222 | I10: =T12 -> 1 | J10: =T17 -> 2.80066 | K10: 0.06365 | L10: =6994.53 -> 6994.53 | N10: OpEx | O10: =O9*O8/1000 -> 19700 | P10: $/yr | S10: Pre-stressed concrete | T10: =0.6/$O$4 -> 0.3
A11: Swept rotor area | B11: Ar | C11: =61.44 -> 61.44 | D11: m2 | F11: 3 | G11: Structure (tower, cross-arm, columns...) | H11: =I11*(1+J11+K11)*L11 -> 31174.93699 | I11: =T12 -> 1 | J11: 8.03236 | K11: 0.06365 | L11: =3427.32 -> 3427.32 | N11: CapEx | O11: =H20*O4 -> 368945.8322 | P11: $ | S11: Titanium alloys | T11: =45/$O$4 -> 22.5
A12: Water speed below rated | B12: V1 | C12: =1.5 -> 1.5 | D12: m/s | F12: 4 | G12: Floating system (floaters, ballast…) | H12: 37105.53787 | I12: =T12 -> 1 | J12: 7.83725 | K12: 0.06365 | L12: =4168.74 -> 4168.74 | N12: LCOE | O12: =($O$7*$O$11+$O$10)/$O$23 -> 0.1670899812 | P12: $/kWh | S12: Steel of reference, to calculate ft factors | T12: =2/$O$4 -> 1
A13: Water power at V1 | B13: Pw1 | C13: =0.5*C10*C11*C12^3 -> 103680 | D13: W | F13: 5 | G13: Mooring system (ropes, connection…) | H13: =I13*(1+J13+K13)*L13 -> 1906.694319 | I13: =T12 -> 1 | J13: 1.72207 | K13: 0.11747 | L13: =671.48 -> 671.48 | N13: indVin | O13: =IF(O5=B30,ROW(B30),ROW(B30)+MATCH(O5,B30:B270))-1 -> 40 | P13: --
A14: Electrical power at V1 | B14: Pe1 | C14: =0.5*C10*C11*C12^3*C21*C22 -> 39354.10381 | D14: We | F14: 6 | G14: Anchoring/foundation system | H14: =I14*(1+J14+K14)*L14 -> 57200.42068 | I14: =T10 -> 0.3 | J14: 1.72207 | K14: 0.11747 | L14: =67147.52 -> 67147.52 | N14: indVoff | O14: =IF(O6=B30,ROW(B30),ROW(B30)+MATCH(O6,B30:B270)) -> 88 | P14: --
A15: Generator losses | B15: Lg | C15: =0.03 -> 0.03 | D15: p.u. | N15: nHoursYear | O15: =8760 -> 8760 | P15: hr/yr | R15: j | S15: Component (j = 1 to 7) | T15: Manufacturing factor fm | U15: Installation factor fi
A16: Drive-train losses | B16: Ldt | C16: =0.035 -> 0.035 | D16: p.u. | N16: interval | O16: =0.05 -> 0.05 | P16: -- | R16: 1 | S16: =G9 -> Rotor (blades, hub) | T16: =2.80066 -> 2.80066 | U16: =0.06365 -> 0.06365
A17: Wake effect losses | B17: Lw | C17: =0 -> 0 | D17: p.u. | N17: kk | O17: =1/O16 -> 20 | P17: -- | R17: 2 | S17: =G10 -> Nacelle (generator, drive-train, PTO, yaw, bearings, pitch…) | T17: =2.80066 -> 2.80066 | U17: =0.06365 -> 0.06365
A18: Electrical losses | B18: Le | C18: =0 -> 0 | D18: p.u. | N18: nV0 | O18: =COUNT(B30:B320) -> 291 | P18: -- | R18: 3 | S18: Structure (tower, cross-arm, columns...) | T18: =8.03236 -> 8.03236 | U18: =0.06365 -> 0.06365
A19: Other losses | B19: Lo | C19: =1-(0.99*0.98) -> 0.0298 | D19: p.u. | N19: meanWaterVel | O19: =SUMPRODUCT(B30:B330,O30:O330) -> 1.30955 | P19: m/s | R19: 4 | S19: Floating system (floaters, ballast…) | T19: =7.83725 -> 7.83725 | U19: =0.06365 -> 0.06365
A20: Water turbine availavility | B20: Av | C20: =0.9288 -> 0.9288 | D20: p.u. | G20: Meq | H20: =SUM(H9:H19) -> 184472.9161 | I20: kg | N20: ratedWaterVel | O20: =INDIRECT(ADDRESS(ROW(E29)+MATCH(O8,E30:E330,0),COLUMN(B29))) -> 2.05 | P20: m/s | R20: 5 | S20: Mooring system (ropes, connection…) | T20: =1.72207 -> 1.72207 | U20: =0.11747 -> 0.11747
A21: Max. power coefficient | B21: Cp | C21: =0.45 -> 0.45 | D21: p.u. | F21: M2 | G21: =C11/H20 -> 0.0003330570216 | H21: m2/kg | N21: WhYear | O21: =MAX(F30:F320) -> 298962019.6 | P21: Wh/yr | R21: 6 | S21: Anchoring/foundation system | T21: =1.72207 -> 1.72207 | U21: =0.11747 -> 0.11747
A22: Electromechanical eff. | B22: µ | C22: =(1-C15)*(1-C16)*(1-C17)*(1-C18)*(1-C19)*C20 -> 0.8434950234 | D22: p.u. | N22: CF | O22: =O21/(O15*O8)*100 -> 34.12808443 | P22: %
A23: Water-to-electron eff. | B23: Pe1/Pw1 | C23: =C14/C13 -> 0.3795727606 | D23: p.u. | F23: Average cross section in this site, meanCS, (m2) | H23: =H24*H25 -> 9600 | N23: AEP | O23: =O15*O8*(O22/100)/1000 -> 298962.0196 | P23: kWh/yr
B24: M1 | C24: =C21*C22 -> 0.3795727606 | D24: -- | F24: meanWidth | G24: Average width (m) | H24: =800 -> 800
F25: meanDepth | G25: Average depth (m) | H25: =12 -> 12 | R25: Cost of electrical lines (intra-farm and farm to shore) and substation are excluded
A28: LCOE calculations (should not need to change anything below this row)
B29: V0 | C29: Pwater | D29: h1 | E29: Pelec | F29: WhYear | I29: Proposed S3 LCOE | J29: Target S3 LCOE | N29: Speed (m/s) | O29: Time | P29: Site (River): Mississippi River at Baton Rouge, in Louisiana
B30: 0 | C30: =0.5*$C$10*$C$11*(B30)^3 -> 0 | D30: =IF(B30<$O$5,0,IF(B30>$O$6, 0,O30)) -> 0 | E30: =IF(B30<$O$5,0,IF(C30*$C$24>$O$8,$O$8,C30*$C$24)) -> 0 | F30: =IF(B30>$O$6,0,IF(B30<$O$5,0,IF(ROW(B30)>ROW($B$30),OFFSET(INDIRECT(ADDRESS(ROW(), COLUMN())),-1,0)+$O$15*D30*E30,IF(ROW(B30)=ROW($B$30),$O$15*D30*E30,0)))) -> 0 | H30: M1 | I30: M2 | J30: M2 | N30: 0 | O30: 0
B31: =B30+$O$16 -> 0.05 | C31: =0.5*$C$10*$C$11*(B31)^3 -> 3.84 | D31: =IF(B31<$O$5,0,IF(B31>$O$6, 0,O31)) -> 0 | E31: 0 | F31: 0 | H31: =B341 -> 0.1 | I31: =B336 -> 614400 | J31: =B649 -> 614400 | N31: 0.05 | O31: 0
B32: 0.1 | C32: 30.72 | D32: 0 | E32: 0 | F32: 0 | H32: =D341 -> 0.11601294 | I32: =D336 -> 614400 | J32: =D649 -> 614400 | N32: 0.1 | O32: 0
B33: 0.15 | C33: 103.68 | D33: 0 | E33: 0 | F33: 0 | H33: =F341 -> 0.13459002 | I33: =F336 -> 614400 | J33: =F649 -> 614400 | N33: 0.15 | O33: 0
B34: 0.2 | C34: 245.76 | D34: 0 | E34: 0 | F34: 0 | H34: =H341 -> 0.15614184 | I34: =H336 -> 0.003689529457 | J34: =H649 -> 614400 | N34: 0.2 | O34: 0
B35: 0.25 | C35: 480 | D35: 0 | E35: 0 | F35: 0 | H35: =J341 -> 0.18114473 | I35: =J336 -> 0.001612219375 | J35: =J649 -> 614400 | N35: 0.25 | O35: 0
B36: 0.3 | C36: 829.44 | D36: 0 | E36: 0 | F36: 0 | H36: =L341 -> 0.21015133 | I36: =L336 -> 0.0009868459909 | J36: =L649 -> 614400 | N36: 0.3 | O36: 0
B37: 0.35 | C37: 1317.12 | D37: 0 | E37: 0 | F37: 0 | H37: =N341 -> 0.24380273 | I37: =N336 -> 0.0006879293039 | J37: =N649 -> 614400 | N37: 0.35 | O37: 0
B38: 0.4 | C38: 1966.08 | D38: 0 | E38: 0 | F38: 0 | H38: =P341 -> 0.28284271 | I38: =P336 -> 0.0005153233199 | J38: =P649 -> 614400 | N38: 0.4 | O38: 0
B39: 0.45 | C39: 2799.36 | D39: 0 | E39: 0 | F39: 0 | H39: =R341 -> 0.32813414 | I39: =R336 -> 0.000405644508 | J39: =R649 -> 614400 | N39: 0.45 | O39: 0.00075
B40: 0.5 | C40: 3840 | D40: 0.0015 | E40: 1457.559401 | F40: 19152.33052 | H40: =T341 -> 0.38067806 | I40: =T336 -> 0.0003318867665 | J40: =T649 -> 614400 | N40: 0.5 | O40: 0.0015
B41: 0.55 | C41: 5111.04 | D41: 0.0075 | E41: 1940.011562 | F41: 146611.0902 | H41: =V341 -> 0.44163581 | I41: =V336 -> 0.0002798783321 | J41: =V649 -> 0.005118136802 | N41: 0.55 | O41: 0.0075
B42: 0.6 | C42: 6635.52 | D42: 0.0135 | E42: 2518.662644 | F42: 444468.1344 | H42: =X341 -> 0.51235468 | I42: =X336 -> 0.0002417017787 | J42: =X649 -> 0.002410091392 | N42: 0.6 | O42: 0.0135
B43: 0.65 | C43: 8436.48 | D43: 0.021 | E43: 3202.258003 | F43: 1033555.517 | H43: =Z341 -> 0.59439772 | I43: =Z336 -> 0.000212871606 | J43: =Z649 -> 0.00158002845 | N43: 0.65 | O43: 0.021
B44: 0.7 | C44: 10536.96 | D44: 0.0285 | E44: 3999.542995 | F44: 2032081.421 | H44: =AB341 -> 0.68957826 | I44: =AB336 -> 0.0001902860145 | J44: =AB649 -> 0.001176740382 | N44: 0.7 | O44: 0.0285
B45: 0.75 | C45: 12960 | D45: 0.03725 | E45: 4919.262977 | F45: 3637286.123 | H45: =AD341 -> 0.8 | I45: =AD336 -> 0.0001719998835 | J45: =AD649 -> 0.0009370752407 | N45: 0.75 | O45: 0.03725
B46: 0.8 | C46: 15728.64 | D46: 0.046 | E46: 5970.163305 | F46: 6043023.128 | N46: 0.8 | O46: 0.046
B47: 0.85 | C47: 18865.92 | D47: 0.048625 | E47: 7160.989335 | F47: 9093282.34 | N47: 0.85 | O47: 0.048625
B48: 0.9 | C48: 22394.88 | D48: 0.05125 | E48: 8500.486424 | F48: 12909575.72 | N48: 0.9 | O48: 0.05125
B49: 0.95 | C49: 26338.56 | D49: 0.048625 | E49: 9997.399928 | F49: 17168018.21 | N49: 0.95 | O49: 0.048625
B50: 1 | C50: 30720 | D50: 0.046 | E50: 11660.4752 | F50: 21866723.29 | I50: M1 | J50: M2 | N50: 1 | O50: 0.046
B51: 1.05 | C51: 35562.24 | D51: 0.0425 | E51: 13498.45761 | F51: 26892199.06 | H51: Betz × 1 | I51: 0.593 | J51: 0 | N51: 1.05 | O51: 0.0425
B52: 1.1 | C52: 40888.32 | D52: 0.039 | E52: 15520.0925 | F52: 32194483.46 | I52: 0.593 | J52: 0.005 | N52: 1.1 | O52: 0.039
B53: 1.15 | C53: 46721.28 | D53: 0.03725 | E53: 17734.12523 | F53: 37981305.87 | N53: 1.15 | O53: 0.03725
B54: 1.2 | C54: 53084.16 | D54: 0.0355 | E54: 20149.30115 | F54: 44247335.54 | N54: 1.2 | O54: 0.0355
B55: 1.25 | C55: 60000 | D55: 0.0335 | E55: 22774.36563 | F55: 50930700.88 | N55: 1.25 | O55: 0.0335
B56: 1.3 | C56: 67491.84 | D56: 0.0315 | E56: 25618.06402 | F56: 57999749.46 | N56: 1.3 | O56: 0.0315
B57: 1.35 | C57: 75582.72 | D57: 0.03 | E57: 28689.14168 | F57: 65539255.9 | N57: 1.35 | O57: 0.03
B58: 1.4 | C58: 84295.68 | D58: 0.0285 | E58: 31996.34396 | F58: 73527463.13 | N58: 1.4 | O58: 0.0285
B59: 1.45 | C59: 93653.76 | D59: 0.02775 | E59: 35548.41622 | F59: 82168927.63 | N59: 1.45 | O59: 0.02775
B60: 1.5 | C60: 103680 | D60: 0.027 | E60: 39354.10381 | F60: 91476960.26 | N60: 1.5 | O60: 0.027
B61: 1.55 | C61: 114397.44 | D61: 0.02675 | E61: 43422.1521 | F61: 101652073.2 | N61: 1.55 | O61: 0.02675
B62: 1.6 | C62: 125829.12 | D62: 0.0265 | E62: 47761.30644 | F62: 112739382.8 | N62: 1.6 | O62: 0.0265
B63: 1.65 | C63: 137998.08 | D63: 0.02475 | E63: 52380.31218 | F63: 124095958.3 | N63: 1.65 | O63: 0.02475
B64: 1.7 | C64: 150927.36 | D64: 0.023 | E64: 57287.91468 | F64: 135638327.4 | N64: 1.7 | O64: 0.023
B65: 1.75 | C65: 164640 | D65: 0.023125 | E65: 62492.8593 | F65: 148297818.3 | N65: 1.75 | O65: 0.023125
B66: 1.8 | C66: 179159.04 | D66: 0.02325 | E66: 68003.89139 | F66: 162148170.9 | N66: 1.8 | O66: 0.02325
B67: 1.85 | C67: 194507.52 | D67: 0.021625 | E67: 73829.75631 | F67: 176134110.8 | N67: 1.85 | O67: 0.021625
B68: 1.9 | C68: 210708.48 | D68: 0.02 | E68: 79979.19943 | F68: 190146466.5 | N68: 1.9 | O68: 0.02
B69: 1.95 | C69: 227784.96 | D69: 0.019 | E69: 86460.96608 | F69: 204537029.7 | N69: 1.95 | O69: 0.019
B70: 2 | C70: 245760 | D70: 0.018 | E70: 93283.80163 | F70: 219246019.6 | N70: 2 | O70: 0.018
B71: 2.05 | C71: 264656.64 | D71: 0.016125 | E71: 100000 | F71: 233371519.6 | N71: 2.05 | O71: 0.016125
B72: 2.1 | C72: 284497.92 | D72: 0.01425 | E72: 100000 | F72: 245854519.6 | N72: 2.1 | O72: 0.01425
B73: 2.15 | C73: 305306.88 | D73: 0.012125 | E73: 100000 | F73: 256476019.6 | N73: 2.15 | O73: 0.012125
B74: 2.2 | C74: 327106.56 | D74: 0.01 | E74: 100000 | F74: 265236019.6 | N74: 2.2 | O74: 0.01
B75: 2.25 | C75: 349920 | D75: 0.008125 | E75: 100000 | F75: 272353519.6 | N75: 2.25 | O75: 0.008125
B76: 2.3 | C76: 373770.24 | D76: 0.00625 | E76: 100000 | F76: 277828519.6 | N76: 2.3 | O76: 0.00625
B77: 2.35 | C77: 398680.32 | D77: 0.005 | E77: 100000 | F77: 282208519.6 | N77: 2.35 | O77: 0.005
B78: 2.4 | C78: 424673.28 | D78: 0.00375 | E78: 100000 | F78: 285493519.6 | N78: 2.4 | O78: 0.00375
B79: 2.45 | C79: 451772.16 | D79: 0.003125 | E79: 100000 | F79: 288231019.6 | N79: 2.45 | O79: 0.003125
B80: 2.5 | C80: 480000 | D80: 0.0025 | E80: 100000 | F80: 290421019.6 | N80: 2.5 | O80: 0.0025
B81: 2.55 | C81: 509379.84 | D81: 0.00225 | E81: 100000 | F81: 292392019.6 | N81: 2.55 | O81: 0.00225
B82: 2.6 | C82: 539934.72 | D82: 0.002 | E82: 100000 | F82: 294144019.6 | N82: 2.6 | O82: 0.002
B83: 2.65 | C83: 571687.68 | D83: 0.002 | E83: 100000 | F83: 295896019.6 | N83: 2.65 | O83: 0.002
B84: 2.7 | C84: 604661.76 | D84: 0.002 | E84: 100000 | F84: 297648019.6 | N84: 2.7 | O84: 0.002
B85: 2.75 | C85: 638880 | D85: 0.001125 | E85: 100000 | F85: 298633519.6 | N85: 2.75 | O85: 0.001125
B86: 2.8 | C86: 674365.44 | D86: 0.00025 | E86: 100000 | F86: 298852519.6 | N86: 2.8 | O86: 0.00025
B87: 2.85 | C87: 711141.12 | D87: 0.000125 | E87: 100000 | F87: 298962019.6 | N87: 2.85 | O87: 0.000125
B88: 2.9 | C88: 749230.08 | D88: 0 | E88: 100000 | F88: 0 | N88: 2.9 | O88: 0
B89: 2.95 | C89: 788655.36 | D89: 0 | E89: 100000 | F89: 0 | N89: 2.95 | O89: 0
B90: 3 | C90: 829440 | D90: 0 | E90: 100000 | F90: 0 | N90: 3 | O90: 0
B91: 3.05 | C91: 871607.04 | D91: 0 | E91: 100000 | F91: 0 | N91: 3.05 | O91: 0
B92: 3.1 | C92: 915179.52 | D92: 0 | E92: 100000 | F92: 0 | N92: 3.1 | O92: 0
B93: 3.15 | C93: 960180.48 | D93: 0 | E93: 100000 | F93: 0 | N93: 3.15 | O93: 0
B94: 3.2 | C94: 1006632.96 | D94: 0 | E94: =IF(B94<$O$5,0,IF(C94*$C$24>$O$8,$O$8,C94*$C$24)) -> 100000 | F94: =IF(B94>$O$6,0,IF(B94<$O$5,0,IF(ROW(B94)>ROW($B$30),OFFSET(INDIRECT(ADDRESS(ROW(), COLUMN())),-1,0)+$O$15*D94*E94,IF(ROW(B94)=ROW($B$30),$O$15*D94*E94,0)))) -> 0 | N94: 3.2 | O94: 0
B95: =B94+$O$16 -> 3.25 | C95: =0.5*$C$10*$C$11*(B95)^3 -> 1054560 | D95: =IF(B95<$O$5,0,IF(B95>$O$6, 0,O95)) -> 0 | E95: 100000 | F95: 0 | N95: 3.25 | O95: 0
B96: 3.3 | C96: 1103984.64 | D96: 0 | E96: 100000 | F96: 0 | N96: 3.3 | O96: 0
B97: 3.35 | C97: 1154929.92 | D97: 0 | E97: 100000 | F97: 0 | N97: 3.35 | O97: 0
B98: 3.4 | C98: 1207418.88 | D98: 0 | E98: 100000 | F98: 0 | N98: 3.4 | O98: 0
B99: 3.45 | C99: 1261474.56 | D99: 0 | E99: 100000 | F99: 0 | N99: 3.45 | O99: 0
B100: 3.5 | C100: 1317120 | D100: 0 | E100: 100000 | F100: 0 | N100: 3.5 | O100: 0
B101: 3.55 | C101: 1374378.24 | D101: 0 | E101: 100000 | F101: 0 | N101: 3.55 | O101: 0
B102: 3.6 | C102: 1433272.32 | D102: 0 | E102: 100000 | F102: 0 | N102: 3.6 | O102: 0
B103: 3.65 | C103: 1493825.28 | D103: 0 | E103: 100000 | F103: 0 | N103: 3.65 | O103: 0
B104: 3.7 | C104: 1556060.16 | D104: 0 | E104: 100000 | F104: 0 | N104: 3.7 | O104: 0
B105: 3.75 | C105: 1620000 | D105: 0 | E105: 100000 | F105: 0 | N105: 3.75 | O105: 0
B106: 3.8 | C106: 1685667.84 | D106: 0 | E106: 100000 | F106: 0 | N106: 3.8 | O106: 0
B107: 3.85 | C107: 1753086.72 | D107: 0 | E107: 100000 | F107: 0 | N107: 3.85 | O107: 0
B108: 3.9 | C108: 1822279.68 | D108: 0 | E108: 100000 | F108: 0 | N108: 3.9 | O108: 0
B109: 3.95 | C109: 1893269.76 | D109: 0 | E109: 100000 | F109: 0 | N109: 3.95 | O109: 0
B110: 4 | C110: 1966080 | D110: 0 | E110: 100000 | F110: 0 | N110: 4 | O110: 0
B111: 4.05 | C111: 2040733.44 | D111: 0 | E111: 100000 | F111: 0 | N111: 4.05 | O111: 0
B112: 4.1 | C112: 2117253.12 | D112: 0 | E112: 100000 | F112: 0 | N112: 4.1 | O112: 0
B113: 4.15 | C113: 2195662.08 | D113: 0 | E113: 100000 | F113: 0 | N113: 4.15 | O113: 0
B114: 4.2 | C114: 2275983.36 | D114: 0 | E114: 100000 | F114: 0 | N114: 4.2 | O114: 0
B115: 4.25 | C115: 2358240 | D115: 0 | E115: 100000 | F115: 0 | N115: 4.25 | O115: 0
B116: 4.3 | C116: 2442455.04 | D116: 0 | E116: 100000 | F116: 0 | N116: 4.3 | O116: 0
B117: 4.35 | C117: 2528651.52 | D117: 0 | E117: 100000 | F117: 0 | N117: 4.35 | O117: 0
B118: 4.4 | C118: 2616852.48 | D118: 0 | E118: 100000 | F118: 0 | N118: 4.4 | O118: 0
B119: 4.45 | C119: 2707080.96 | D119: 0 | E119: 100000 | F119: 0 | N119: 4.45 | O119: 0
B120: 4.5 | C120: 2799360 | D120: 0 | E120: 100000 | F120: 0 | N120: 4.5 | O120: 0
B121: 4.55 | C121: 2893712.64 | D121: 0 | E121: 100000 | F121: 0 | N121: 4.55 | O121: 0
B122: 4.6 | C122: 2990161.92 | D122: 0 | E122: 100000 | F122: 0 | N122: 4.6 | O122: 0
B123: 4.65 | C123: 3088730.88 | D123: 0 | E123: 100000 | F123: 0 | N123: 4.65 | O123: 0
B124: 4.7 | C124: 3189442.56 | D124: 0 | E124: 100000 | F124: 0 | N124: 4.7 | O124: 0
B125: 4.75 | C125: 3292320 | D125: 0 | E125: 100000 | F125: 0 | N125: 4.75 | O125: 0
B126: 4.8 | C126: 3397386.24 | D126: 0 | E126: 100000 | F126: 0 | N126: 4.8 | O126: 0
B127: 4.85 | C127: 3504664.32 | D127: 0 | E127: 100000 | F127: 0 | N127: 4.85 | O127: 0
B128: 4.9 | C128: 3614177.28 | D128: 0 | E128: 100000 | F128: 0 | N128: 4.9 | O128: 0
B129: 4.95 | C129: 3725948.16 | D129: 0 | E129: 100000 | F129: 0 | N129: 4.95 | O129: 0
B130: 5 | C130: 3840000 | D130: 0 | E130: 100000 | F130: 0 | N130: 5 | O130: 0
B131: 5.05 | C131: 3956355.84 | D131: 0 | E131: 100000 | F131: 0 | N131: 5.05 | O131: 0
B132: 5.1 | C132: 4075038.72 | D132: 0 | E132: 100000 | F132: 0 | N132: 5.1 | O132: 0
B133: 5.15 | C133: 4196071.68 | D133: 0 | E133: 100000 | F133: 0 | N133: 5.15 | O133: 0
B134: 5.2 | C134: 4319477.76 | D134: 0 | E134: 100000 | F134: 0 | N134: 5.2 | O134: 0
B135: 5.25 | C135: 4445280 | D135: 0 | E135: 100000 | F135: 0 | N135: 5.25 | O135: 0
B136: 5.3 | C136: 4573501.44 | D136: 0 | E136: 100000 | F136: 0 | N136: 5.3 | O136: 0
B137: 5.35 | C137: 4704165.12 | D137: 0 | E137: 100000 | F137: 0
B138: 5.4 | C138: 4837294.08 | D138: 0 | E138: 100000 | F138: 0
B139: 5.45 | C139: 4972911.36 | D139: 0 | E139: 100000 | F139: 0
B140: 5.5 | C140: 5111040 | D140: 0 | E140: 100000 | F140: 0
B141: 5.55 | C141: 5251703.04 | D141: 0 | E141: 100000 | F141: 0
B142: 5.6 | C142: 5394923.52 | D142: 0 | E142: 100000 | F142: 0
B143: 5.65 | C143: 5540724.48 | D143: 0 | E143: 100000 | F143: 0
B144: 5.7 | C144: 5689128.96 | D144: 0 | E144: 100000 | F144: 0
B145: 5.75 | C145: 5840160 | D145: 0 | E145: 100000 | F145: 0
B146: 5.8 | C146: 5993840.64 | D146: 0 | E146: 100000 | F146: 0
B147: 5.85 | C147: 6150193.92 | D147: 0 | E147: 100000 | F147: 0
B148: 5.9 | C148: 6309242.88 | D148: 0 | E148: 100000 | F148: 0
B149: 5.95 | C149: 6471010.56 | D149: 0 | E149: 100000 | F149: 0
B150: 6 | C150: 6635520 | D150: 0 | E150: 100000 | F150: 0
B151: 6.05 | C151: 6802794.24 | D151: 0 | E151: 100000 | F151: 0
B152: 6.1 | C152: 6972856.32 | D152: 0 | E152: 100000 | F152: 0
B153: 6.15 | C153: 7145729.28 | D153: 0 | E153: 100000 | F153: 0
B154: 6.2 | C154: 7321436.16 | D154: 0 | E154: 100000 | F154: 0
B155: 6.25 | C155: 7500000 | D155: 0 | E155: 100000 | F155: 0
B156: 6.3 | C156: 7681443.84 | D156: 0 | E156: 100000 | F156: 0
B157: 6.35 | C157: 7865790.72 | D157: 0 | E157: 100000 | F157: 0
B158: 6.4 | C158: 8053063.68 | D158: 0 | E158: =IF(B158<$O$5,0,IF(C158*$C$24>$O$8,$O$8,C158*$C$24)) -> 100000 | F158: =IF(B158>$O$6,0,IF(B158<$O$5,0,IF(ROW(B158)>ROW($B$30),OFFSET(INDIRECT(ADDRESS(ROW(), COLUMN())),-1,0)+$O$15*D158*E158,IF(ROW(B158)=ROW($B$30),$O$15*D158*E158,0)))) -> 0
B159: =B158+$O$16 -> 6.45 | C159: =0.5*$C$10*$C$11*(B159)^3 -> 8243285.76 | D159: =IF(B159<$O$5,0,IF(B159>$O$6, 0,O159)) -> 0 | E159: 100000 | F159: 0
B160: 6.5 | C160: 8436480 | D160: 0 | E160: 100000 | F160: 0
B161: 6.55 | C161: 8632669.44 | D161: 0 | E161: 100000 | F161: 0
B162: 6.6 | C162: 8831877.12 | D162: 0 | E162: 100000 | F162: 0
B163: 6.65 | C163: 9034126.08 | D163: 0 | E163: 100000 | F163: 0
B164: 6.7 | C164: 9239439.36 | D164: 0 | E164: 100000 | F164: 0
B165: 6.75 | C165: 9447840 | D165: 0 | E165: 100000 | F165: 0
B166: 6.8 | C166: 9659351.04 | D166: 0 | E166: 100000 | F166: 0
B167: 6.85 | C167: 9873995.52 | D167: 0 | E167: 100000 | F167: 0
B168: 6.9 | C168: 10091796.48 | D168: 0 | E168: 100000 | F168: 0
B169: 6.95 | C169: 10312776.96 | D169: 0 | E169: 100000 | F169: 0
B170: 7 | C170: 10536960 | D170: 0 | E170: 100000 | F170: 0
B171: 7.05 | C171: 10764368.64 | D171: 0 | E171: 100000 | F171: 0
B172: 7.1 | C172: 10995025.92 | D172: 0 | E172: 100000 | F172: 0
B173: 7.15 | C173: 11228954.88 | D173: 0 | E173: 100000 | F173: 0
B174: 7.2 | C174: 11466178.56 | D174: 0 | E174: 100000 | F174: 0
B175: 7.25 | C175: 11706720 | D175: 0 | E175: 100000 | F175: 0
B176: 7.3 | C176: 11950602.24 | D176: 0 | E176: 100000 | F176: 0
B177: 7.35 | C177: 12197848.32 | D177: 0 | E177: 100000 | F177: 0
B178: 7.4 | C178: 12448481.28 | D178: 0 | E178: 100000 | F178: 0
B179: 7.45 | C179: 12702524.16 | D179: 0 | E179: 100000 | F179: 0
B180: 7.5 | C180: 12960000 | D180: 0 | E180: 100000 | F180: 0
B181: 7.55 | C181: 13220931.84 | D181: 0 | E181: 100000 | F181: 0
B182: 7.6 | C182: 13485342.72 | D182: 0 | E182: 100000 | F182: 0
B183: 7.65 | C183: 13753255.68 | D183: 0 | E183: 100000 | F183: 0
B184: 7.7 | C184: 14024693.76 | D184: 0 | E184: 100000 | F184: 0
B185: 7.75 | C185: 14299680 | D185: 0 | E185: 100000 | F185: 0
B186: 7.8 | C186: 14578237.44 | D186: 0 | E186: 100000 | F186: 0
B187: 7.85 | C187: 14860389.12 | D187: 0 | E187: 100000 | F187: 0
B188: 7.9 | C188: 15146158.08 | D188: 0 | E188: 100000 | F188: 0
B189: 7.95 | C189: 15435567.36 | D189: 0 | E189: 100000 | F189: 0
B190: 8 | C190: 15728640 | D190: 0 | E190: 100000 | F190: 0
B191: 8.05 | C191: 16025399.04 | D191: 0 | E191: 100000 | F191: 0
B192: 8.1 | C192: 16325867.52 | D192: 0 | E192: 100000 | F192: 0
B193: 8.15 | C193: 16630068.48 | D193: 0 | E193: 100000 | F193: 0
B194: 8.2 | C194: 16938024.96 | D194: 0 | E194: 100000 | F194: 0
B195: 8.25 | C195: 17249760 | D195: 0 | E195: 100000 | F195: 0
B196: 8.3 | C196: 17565296.64 | D196: 0 | E196: 100000 | F196: 0
B197: 8.35 | C197: 17884657.92 | D197: 0 | E197: 100000 | F197: 0
B198: 8.4 | C198: 18207866.88 | D198: 0 | E198: 100000 | F198: 0
B199: 8.45 | C199: 18534946.56 | D199: 0 | E199: 100000 | F199: 0
B200: 8.5 | C200: 18865920 | D200: 0 | E200: 100000 | F200: 0
B201: 8.55 | C201: 19200810.24 | D201: 0 | E201: 100000 | F201: 0
B202: 8.6 | C202: 19539640.32 | D202: 0 | E202: 100000 | F202: 0
... 746 more rows

Sheet 2b. Proposed Design Plot
P27: This plot is generated automatically from the tab "2a. Proposed Design"

Sheet 2c. Summary of Changes
A1: Summary and justification of changes | C1: This page summarizes the changes between the "Original Design" (Sheet 1a) and the "Proposed Design" (Sheet 2a). Please use Sheet 2a as the basis for information on this sheet, including "cell number"
A3: Cell number | B3: Corresponding variable | C3: Description of change made | D3: Brief justification of change
A4: H9 (EXAMPLE ONLY) | B4: Mass of Rotor Blades | C4: New value is 1/3 of previous value | D4: We propose a new blade design that … | E4: THIS LINE SERVES AS AN EXAMPLE
A5: F16 - L16 (EXAMPLE ONLY) | B5: XYZ (NEW) | C5: Added a new required component, XYZ, and included its mass (##), ft (##), fm (##), and fi (##) | D5: XYZ is required for this design, but it will enable reduction in mass elsewhere in the system… | E5: THIS LINE SERVES AS AN EXAMPLE

Sheet About
B1: SHARKS Program (Submarine Hydrokinetic And Riverine Kilo/megawatt Systems)
B2: This workbook corresponds to ARPA-E DE-FOA-0002334 (Section I.C.2) and DE-FOA-0002335 (Section I.D.2).
B3: ARPA-E, U.S. Department of Energy, Washington D.C. (https://arpaefoa.energy.gov)
B4: Version 2.0 (April 2020)
B6: The ARPA-E SHARKS Program seeks to develop new designs for economically attractive Hydrokinetic Turbines (HKT) for tidal and riverine currents. The program urges the application of Control Co-Design (CCD), Co-Design (CD), and Designing-for-OpEx (DFO) methodologies to HKT design. These three design methodologies require the concurrent (rather than sequential) application of a wide range of disciplines, starting at the conceptual design stage.
B11: The two-dimensional LCOE Metric Space introduced here considers the swept-rotor-area per equivalent mass (M2) and the power generation efficiency (M1) of the HKT, and guides the research to navigate across resulting LCOE isolines. Three tasks can be applied to optimize the system design: Task T1 includes technological innovations that increase M1, which is the total efficiency from the kinetic energy of water to the electrical energy at the output of the turbine; Task T2 focuses on increasing M2, which is the swept area of the rotor normalized by the equivalent mass of the system; Task T3 are innovations that move down the LCOE isolines by decreasing operation and maintenance expenses, OpEx, from OpEx1 to OpEx2, with OpEx2 < OpEx1.
B17: In general, the Excel workbook files are named S#_SHARKS_MetricSpaceWorkbook.xlsx and are provided to calculate the M1 and M2 metrics and the LCOE front in the metric space of the SHARKS Program. The information about the new HKT designs proposed by the applicants must be introduced in tab "2a. Proposed Design". Numbers that differ from the "1a. Original Design" must be included in "2c. Summary of Changes". Typically, the cells to be modified in "2a. Proposed Design" are the ones with brown numbers. Cells with black numbers are calculated by equations. If the proposed design needs different equations from the ones in this document, this has to be justified in tab 2c as well. The plots in tabs 1b and 2b are generated automatically from tabs 1a and 2a respectively. Cost of electrical lines and substation are excluded. The case proposed in "1a. Original Design" and "1b. Original Design Plot" is Case S# of the SHARKS FOA document.
B24: Version 1.1 allows vCutIn to be as low as 1 m/s, which doesn't affect wind energy systems, but is useful for calculations of tidal energy converters.
B25: Version 1.2 allows vCutIn to be as low as 0 m/s and a better resolution on the Weibull distribution.
B26: Version 2.0 adapted for SHARKS FOA.

Sheet Glossary
A1: Glossary of terms | C1: This page describes the main variables used in this Workbook
A3: Cell | B3: Name | C3: Units | D3: Variable | E3: Description
A4: A2, B24 | B4: Metric M1 | C4: -- | D4: M1 | E4: M1 = Pe1 / Pw1 = Cp µ
A5: A3, F21 | B5: Metric M2 | C5: m2/kg | D5: M2 | E5: M2 = Ar / Meq
A6: A4, N12 | B6: Levelized cost of energy | C6: $/kWh | D6: LCOE | E6: LCOE = (FCR CapEx + OpEx) / AEP
A7: A5, N3 | B7: Levelized cost of energy target | C7: $/kWh | D7: LCOE target | E7: Value of the target levelized cost of energy
A8: A10 | B8: Water density | C8: kg/m3 | D8: ρ | E8: Water density at the HKT
A9: A11 | B9: Swept rotor area | C9: m2 | D9: Ar | E9: For both, Parallel-Axis Hydrokinetic Turbines (PAHKT) and Orthogonal-Axis Hydrokinetic Turbines (OAHKT), Ar is the area of the cross-section of the rotor, perpendicular to the water direction. For Kite-type Energy Systems, Ar is the area of the annular path described by the tethered system.
A10: A12 | B10: Water speed below rated | C10: m/s | D10: V1 | E10: Selected undisturbed upstream below-rated water velocity, assuming a perfect maximum power point tracking (MPPT) control strategy (e.g., 1.5 m/s)
A11: A13 | B11: Water power at V1 | C11: W | D11: Pw1 | E11: Power of the water at V1
A12: A14 | B12: Electrical power at V1 | C12: We | D12: Pe1 | E12: Electrical power generation at V1 at the output of the system
A13: A15 | B13: Generator losses | C13: p.u. | D13: Lg | E13: Generator losses
A14: A16 | B14: Drive-train losses | C14: p.u. | D14: Ldt | E14: Drive-train (gearbox and power electronics) losses
A15: A17 | B15: Wake effect losses | C15: p.u. | D15: Lw | E15: Wake effect losses due to the hydrodynamic interaction of turbines in the farm
A16: A18 | B16: Electrical losses | C16: p.u. | D16: Le | E16: Electrical losses (substation and electrical lines, intra-array and array-to-shore)
A17: A19 | B17: Other losses | C17: p.u. | D17: Lo | E17: Other losses
A18: A20 | B18: Water turbine availavility | C18: p.u. | D18: Av | E18: HKT availability to generate power given water conditions between cut in and cut out velocities
A19: A21 | B19: Maximum power coefficient | C19: p.u. | D19: Cp | E19: Maximum hydrodynamic power coefficient; Cp = Cpmax
A20: A22 | B20: Electromechanical eff. | C20: p.u. | D20: µ | E20: Efficiency of the electromechanical system; µ = (1 - Lg)(1 - Ldt)(1 - Lw)(1 - Le)(1 - Lo)Av
A21: L8 | B21: Original component mass | C21: kg | D21: mcj | E21: Mass of each individual component j (rotor, nacelle, structure, floating system, mooring system, anchoring/foundation system)
A22: H8 | B22: Equivalent component mass | C22: kg | D22: mj | E22: Equivalent mass of component j as made of steel of reference. mj = ft (1 + fm + fi) mcj
A23: G20 | B23: Equivalent mass | C23: kg | D23: Meq | E23: Sum of equivalent component masses. Meq = ∑mj
A24: N4 | B24: Csref (Steel ref) | C24: $/kg | D24: Csref | E24: Cost of steel of reference
A25: N5 | B25: Cut in velocity | C25: m/s | D25: vCutIn | E25: Minimum water velocity for HKT power generation
A26: N6 | B26: Cut out velocity | C26: m/s | D26: vCutOut | E26: Maximum water velocity for HKT power generation
A27: N7 | B27: Fixed charge rate | C27: 1/yr | D27: FCR | E27: Factor to translate capital expenditure to a per year cost over the project lifetime
A28: N8 | B28: Rated power | C28: We | D28: Per | E28: Rated electric power at the output of the HKT
A29: N9 | B29: Operating expense per kW | C29: $/kWe/yr | D29: OpExPerKW | E29: Operating expense per kW of electrical output
A30: N10 | B30: Operating expense | C30: $/yr | D30: OpEx | E30: Operation and maintenance cost of HKT per year
A31: N11 | B31: Capital expenditure | C31: $ | D31: CapEx | E31: Capital cost of HKT; CapEx = Meq * Csref
A32: F23 | B32: Average cross-section at the site | C32: m2 | D32: meanCS | E32: Average flow cross-section of the site; meanCS = meanWidth x meanDepth
A33: F24 | B33: Average width | C33: m | D33: meanWidth | E33: Average width of the site
A34: F25 | B34: Average depth | C34: m | D34: meanDepth | E34: Average depth of the site
A35: N13 | B35: Cell index of cut in velocity | C35: -- | D35: indVin | E35: Excel cell index corresponding to cut in velocity
A36: N14 | B36: Cell index of cut out velocity | C36: -- | D36: indVoff | E36: Excel cell index corresponding to cut out velocity
A37: N15 | B37: Number of hours in year | C37: hr/yr | D37: nHoursYear | E37: = 24hr/day * 365 day/yr
A38: N16 | B38: Water velocity array interval | C38: -- | D38: interval | E38: Resolution of the velocity array
A39: N17 | B39: Inverse of interval | C39: -- | D39: kk | E39: = 1/interval
A40: N18 | B40: Length of velocity array | C40: -- | D40: nV0 | E40: Number of elements in velocity array
A41: N19 | B41: Average water velocity | C41: m/s | D41: meanWaterVel | E41: Average water velocity at the site; determined by frequency distribution
A42: N20 | B42: Rated water velocity | C42: m/s | D42: ratedWaterVel | E42: Rated water velocity at the site; determined by the rated power at the site
A43: N21 | B43: Watt-hours per year | C43: Wh/yr | D43: WhYear | E43: Energy produced by the HKT in one year at the selected site; calculated by the convolution of the power curve of the HKT and the ater velocity probability distribution
A44: N22 | B44: Capacity factor | C44: % | D44: CF | E44: CF = WhYear / (Per * nHoursYear) * 100
A45: N23 | B45: Annual energy production | C45: kWh/yr | D45: AEP | E45: AEP = WhYear / 1000
A46: T2 | B46: Material factor | C46: -- | D46: ft | E46: Ratio between the cost of one kilogram of the original material divided by one kilogram of steel of reference
A47: T15 | B47: Manufacturing factor | C47: -- | D47: fm | E47: Ratio between the cost per kilogram of the manufacturing of the component divided by the cost of one kilogram of the original material of the component
A48: U15 | B48: Installation factor | C48: -- | D48: fi | E48: Ratio between the cost per kilogram of the installation of the component divided by the cost of one kilogram of the original material of the component
A49: -- | B49: Hydrokinetic Turbine | C49: -- | D49: HKT | E49: Includes hydrokinetic turbine, floating platform, mooring system, etc.
